[Event "1st Semana Santa Torrevieja 2022"]
[Site "Torrevieja Alicante"]
[Date "2022.04.15"]
[Round "5.12"]
[White "Habans Aguerrea, Javier"]
[Black "Gomez Ledo, Roberto Carlos"]
[Result "1-0"]
[ECO "D10"]
[WhiteElo "2340"]
[BlackElo "2471"]
[Annotator "TA"]
[PlyCount "103"]
[EventDate "2022.04.12"]
[EventType "swiss"]
[EventCountry "ESP"]
[SourceTitle "playchess.com"]
[Source "ChessBase"]
[SourceQuality "1"]
[TimeControl "5400+30"]

{[%evp 13,103,14,17,20,20,13,16,9,15,9,11,8,10,14,32,42,31,31,37,23,79,65,79,86,89,83,94,93,101,108,112,108,107,116,106,98,208,202,271,271,271,265,271,271,271,271,269,258,253,146,156,154,234,246,236,246,255,256,248,256,239,229,260,259,299,283,302,297,295,287,481,357,553,550,522,467,548,551,533,510,1352,1351,1255,1216,1035,853,880,826,1662,1581,6311,6191]} 1. c4 {[%emt 0:00:06]} c6 {[%emt 0:01:32]} 2. d4 {[%emt 0:00:23]} d5 3. cxd5 {[%emt 0:00:13]} cxd5 {[%emt 1:30:28]} 4. Bf4 {[%emt 0:00:17]} Nc6 {[%emt 0:00:00]} 5. e3 {[%emt 0:00:13]} Nf6 {[%emt 0:00:00]} 6. Nc3 {[%emt 0:00:14]} Bf5 {[%emt 0:00:00]} 7. Qb3 {[%emt 0:00:24]} Na5 $1 {[%emt 0:00:00]} 8. Qa4+ {[%emt 0:00:32] D10: Slav Defence: 3 cxd5 (without early Nf3) and 3 Nc3.} Bd7 {[%emt 0:00:00]} 9. Qc2 {[%emt 0:00:27] next Nb5 is good for White.} Rc8 {[%emt 0:00:00]} 10. Bd3 {[%emt 0:00:30] The position is equal.} e6 {[%emt 0:00:00]} 11. Nf3 {[%emt 0:00:20]} Be7 {[%emt 0:00:00] 11...Bb4 deserves study.} 12. h3 {[%emt 0:00:55]} b5 {[%emt 0:00:00]} 13. a3 {[%emt 0:00:38][%cal Ba2a3,Ba3a4][%mdl 32]} Nc4 {[%emt 0:00:00]} 14. O-O {[%emt 0:01:35]} a5 {[%emt 0:00:00]} 15. Qe2 {[%emt 0:03:50]} O-O {[%emt 0:00:00][%cal Oc4a3]} 16. Ne5 {[%emt 0:05:39]} Be8 {[%emt 0:00:00] [#]} (16... a4 $11 {remains equal.}) 17. a4 $1 $16 {[%emt 0:05:42] &Bianco is more active.} b4 {[%emt 0:00:00]} 18. Nb5 {[%emt 0:01:04][%cal Rd3c4]} (18. Nxc4 $2 dxc4 19. Bxc4 bxc3 20. bxc3 Nd5 $19) 18... Bxb5 {[%emt 0:00:00]} 19. axb5 {[%emt 0:01:20] Black must now prevent Nc6.} Nxe5 {[%emt 0:00:00]} 20. Bxe5 {[%emt 0:00:29] This bishop pair is nice.} Qb6 {[%emt 0:00:00]} 21. Rfc1 {[%emt 0:04:53] [#]} Nd7 $146 {[%emt 0:00:00]} ({Predecessor:} 21... Ne4 22. Qd1 Bd6 23. Bxd6 Nxd6 24. Qa4 Rxc1+ 25. Rxc1 Ra8 26. Rc6 Qd8 27. b6 g6 {½-½ (79) Rasmussen,A (2502)-Petrosyan,T (2421) Sowme'eh Sara 2015}) 22. Bg3 {[%emt 0:03:28]} (22. Qh5 $6 g6 23. Qe2 Nxe5 24. dxe5 Rxc1+ 25. Rxc1 Qb8 $15) 22... Bd6 {[%emt 0:00:00]} 23. Bxd6 {[%emt 0:04:02]} Qxd6 {[%emt 0:00:00]} 24. Qd1 {[%emt 0:00:27]} Nb6 {[%emt 0:00:00]} (24... Qb6 $16) 25. Rxa5 $18 {[%emt 0:03:07]} Nc4 {[%emt 0:00:00]} 26. Ra6 {[%emt 0:01:35]} Nb6 {[%emt 0:00:00]} 27. Qd2 {[%emt 0:03:50]} g6 {[%emt 0:00:00]} 28. Rc2 {[%emt 0:01:06]} b3 {[%emt 0:00:43]} 29. Rc3 {[%emt 0:01:23]} Rc7 {[%emt 0:00:42]} 30. Rxc7 {[%emt 0:07:42]} Qxc7 {[%emt 0:00:08]} 31. Qc3 {[%emt 0:00:09]} ({White should try} 31. Qb4 $18) 31... Qxc3 $16 {[%emt 0:00:50]} 32. bxc3 {[%emt 0:00:02]} Nc4 {[%emt 0:00:15]} (32... Rb8 $16) 33. Bxc4 $18 {[%emt 0:00:16]} dxc4 {[%emt 0:00:26][%mdl 4096] Endgame [#] KR-KR} 34. Ra4 $1 {[%emt 0:00:14]} Rb8 {[%emt 0:01:36]} 35. Rb4 {[%emt 0:00:07]} Kf8 {[%emt 0:01:03]} 36. Kf1 {[%emt 0:00:06]} Ke7 {[%emt 0:00:12]} 37. Ke2 {[%emt 0:00:08]} Kd7 {[%emt 0:00:18]} 38. b6 {[%emt 0:00:29]} f5 {[%emt 0:01:17]} 39. Kd2 {[%emt 0:00:31]} (39. b7 $6 Ke7 40. Kd2 Kd6 $18) 39... Kd6 {[%emt 0:00:23]} 40. Kc1 {[%emt 0:00:57]} ({Don't play} 40. b7 g5 41. Kd1 h6 $18) 40... Kd5 {[%emt 0:01:17]} 41. f3 {[%emt 0:00:40]} e5 $2 {[%emt 0:01:14]} (41... h5 {is a better defense.} 42. b7 e5) 42. Kb2 {[%emt 0:01:01]} f4 {[%emt 0:00:55]} (42... exd4 $2 43. cxd4 (43. exd4 Rb7 $18) 43... f4 44. Rb5+ (44. exf4 Kxd4 45. b7 Kd3 $16) 44... Kc6 45. Rc5+ Kd7 46. e4 $18 (46. exf4 Rxb6 47. Rxc4 Kd6 $16) (46. Rxc4 fxe3 47. Rc3 e2 $16)) (42... e4 $142 43. Rb5+ Ke6 44. fxe4 fxe4) 43. e4+ {[%emt 0:00:38] White is clearly winning.} Kd6 {[%emt 0:00:05]} 44. Rb5 {[%emt 0:03:58]} exd4 {[%emt 0:04:25]} 45. cxd4 {[%emt 0:00:08] Strongly threatening Kc3.} Kc6 {[%emt 0:00:10]} 46. Rc5+ {[%emt 0:00:07]} Kxb6 {[%emt 0:00:05]} (46... Kd7 $142 47. Rc7+ Kd8) 47. Rxc4 {[%emt 0:00:10] Threatens to win with Rb4+.} Ra8 {[%emt 0:01:36]} 48. Kxb3 {[%emt 0:00:11]} Ra1 {[%emt 0:00:03]} 49. Rc2 {[%emt 0:00:23]} Rd1 {[%emt 0:00:14]} 50. d5 {[%emt 0:00:07]} Kb5 {[%emt 0:00:25]} 51. Kc3 {[%emt 0:00:35]} Kc5 {[%emt 0:00:31]} 52. Rd2 {[%emt 0:00:07] Weighted Error Value: White=0.09 (flawless) /Black=0.27 (precise)} 1-0

[Event "1st Semana Santa Torrevieja 2022"]
[Site "Torrevieja Alicante"]
[Date "2022.04.15"]
[Round "5.13"]
[White "Camacho Collados, Marcos"]
[Black "Goluch, Piotr"]
[Result "0-1"]
[ECO "A06"]
[WhiteElo "2462"]
[BlackElo "2314"]
[Annotator "TA"]
[PlyCount "70"]
[EventDate "2022.04.12"]
[EventType "swiss"]
[EventCountry "ESP"]
[SourceTitle "playchess.com"]
[Source "ChessBase"]
[SourceQuality "1"]
[TimeControl "5400+30"]

{[%evp 9,70,0,12,0,0,-14,0,-29,-26,-20,-22,-28,-27,-26,-33,-22,-25,-42,-27,-91,-75,-60,-50,-74,-72,-89,-25,-108,-81,-97,-55,-60,-29,-43,-42,-56,-41,-95,34,-204,-204,-203,-197,-210,-187,-206,-212,-203,-195,-197,-195,-225,-183,-800,-802,-933,-906,-804,-756,-29991,-12833,-2494,-1637]} 1. Nf3 {[%emt 0:00:03]} Nf6 {[%emt 0:00:42]} 2. b3 {[%emt 0:00:30]} d5 {[%emt 0:03:13]} 3. Bb2 {[%emt 0:00:25]} Bg4 {[%emt 0:00:12][%cal Bc8g4,Bg4h5,Bh5g6,Bg6e4,Be4h7][%mdl 32]} 4. e3 {[%emt 0:00:45]} e6 {[%emt 0:01:13]} 5. h3 {[%emt 0:00:44]} Bh5 {[%emt 0:00:09]} 6. g4 {[%emt 0:04:33] A06: Réti Opening: 1 Nf3 d5.} Bg6 {[%emt 0:00:06]} 7. Nh4 {[%emt 0:00:39] [#]} Be4 $146 {[%emt 0:04:49]} ({Predecessor:} 7... c5 8. d3 Nc6 9. Nd2 Be7 10. Bg2 Qc7 11. a3 Rd8 12. Qe2 d4 13. O-O O-O 14. Bxc6 Qxc6 {1-0 (77) Nakamura,H (2736)-Sjugirov,S (2675) Chess.com INT 2020}) 8. Ng2 {[%emt 0:02:02] The position is equal.} h6 {[%emt 0:00:14]} 9. d3 {[%emt 0:00:35]} Bh7 {[%emt 0:00:05]} ({Much less strong is} 9... Bb4+ 10. c3 Bxg2 11. Bxg2 $14) 10. h4 {[%emt 0:01:12]} Nfd7 {[%emt 0:05:04]} 11. f4 {[%emt 0:03:34]} c5 {[%emt 0:01:28]} 12. Nd2 {[%emt 0:01:57]} Nc6 {[%emt 0:00:15]} 13. e4 {[%emt 0:03:05]} d4 {[%emt 0:00:38]} 14. c3 {[%emt 0:13:54] [#]} (14. Qf3 $11 {remains equal.}) 14... g5 $1 $17 {[%emt 0:00:33] &Nero is more active.} 15. cxd4 {[%emt 0:06:50]} cxd4 {[%emt 0:00:18]} 16. hxg5 {[%emt 0:07:36]} hxg5 {[%emt 0:00:04]} 17. f5 {[%emt 0:09:24]} Bb4 {[%emt 0:06:31]} (17... Qf6 $17) 18. Kf2 {[%emt 0:05:02]} (18. Rc1 $11) 18... Nde5 {[%emt 0:00:58] Threatens to win with ...Qf6.} 19. Nc4 {[%emt 0:02:18]} Nxc4 {[%emt 0:01:00]} 20. bxc4 {[%emt 0:00:33]} Qf6 {[%emt 0:07:23]} 21. Bc1 {[%emt 0:04:21]} O-O-O {[%emt 0:00:22]} 22. Rh5 {[%emt 0:01:18]} Rdg8 {[%emt 0:02:19][%cal Re6f5]} 23. Be2 {[%emt 0:07:31]} ({Better is} 23. Qe2 $15) 23... Ne5 {[%emt 0:05:13]} ({Black should try} 23... Bd6 $17 {[%cal Re6f5]} 24. Rb1 Qe7) 24. Qa4 $2 {[%emt 0:03:02] [#] This costs White the game.} (24. Qh1 $1 $14 {was forced to keep a grip.} Be7 25. Rxh7) 24... exf5 $1 $19 {[%emt 0:01:32]} 25. Qxb4 {[%emt 0:02:17]} fxe4+ {[%emt 0:00:05]} 26. Kg1 {[%emt 0:00:50]} exd3 {[%emt 0:02:43]} 27. Qc5+ {[%emt 0:01:55]} Kb8 {[%emt 0:00:39]} 28. Ba3 {[%emt 0:00:26] [#] aiming for Qd6+.} Nf3+ $1 {[%emt 0:11:30]} ({Inferior is} 28... dxe2 29. Qd6+ Qxd6 30. Bxd6+ Kc8 31. Bxe5 $14) 29. Bxf3 {[%emt 0:00:24]} Qxf3 {[%emt 0:00:04]} 30. Rf1 {[%emt 0:01:25]} Qxg4 {[%emt 0:00:29] Chess con chili.} 31. Rxh7 {[%emt 0:16:16]} (31. Qd6+ Ka8 32. Qh2) 31... Rxh7 {[%emt 0:00:26]} 32. Bb2 {[%emt 0:00:27]} Rgh8 {[%emt 0:09:25]} ({Weaker is} 32... Qg3 33. Bxd4 Qh2+ 34. Kf2 $11) 33. Qe5+ {[%emt 0:00:11]} Ka8 {[%emt 0:00:04][%cal Of7f6] ( -> ...f6!)} 34. Bxd4 {[%emt 0:00:53]} d2 {[%emt 0:04:27]} (34... f6 $142 35. Qe3 Rh2 36. Qe8+ Rxe8 37. Kxh2 Rh8+ 38. Kg1 Qxd4+ 39. Ne3 Qxe3+ 40. Kg2 Rh3 41. Rxf6 Rg3+ 42. Kh2 Qg1#) 35. Kf2 {[%emt 0:00:29]} Rh2 {[%emt 0:33:47] Weighted Error Value: White=0.65/Black=0.27 (precise)} 0-1

[Event "1st Semana Santa Torrevieja 2022"]
[Site "Torrevieja Alicante"]
[Date "2022.04.15"]
[Round "5.14"]
[White "Del Rio De Angelis, Salvador G."]
[Black "Garrido Diaz, Jose Antonio"]
[Result "1/2-1/2"]
[ECO "D45"]
[WhiteElo "2452"]
[BlackElo "2183"]
[Annotator "TA"]
[PlyCount "153"]
[EventDate "2022.04.12"]
[EventType "swiss"]
[EventCountry "ESP"]
[SourceTitle "playchess.com"]
[Source "ChessBase"]
[SourceQuality "1"]
[TimeControl "5400+30"]

{[%evp 14,153,0,0,0,2,9,3,10,0,2,-1,10,6,8,-33,26,18,39,14,12,16,34,21,29,-18,-8,-21,-31,-47,-64,-46,-18,-101,-98,-110,38,45,37,-37,0,4,58,18,18,22,40,36,101,105,150,154,144,144,145,147,147,143,143,137,143,143,131,127,127,127,127,119,127,127,127,127,120,119,119,117,120,93,102,97,102,102,104,79,103,49,91,91,86,8,8,8,8,8,8,8,22,22,64,64,64,64,97,30,65,8,8,8,8,8,43,10,31,0,8,8,65,65,81,8,8,8,8,8,8,0,8,8,8,8,8,8,8,8,8,8,8,8,8,8,8,0]} 1. d4 {[%emt 0:05:00]} d5 {[%emt 0:00:08]} 2. c4 {[%emt 0:00:08]} e6 {[%emt 0:00:15]} 3. Nc3 {[%emt 0:00:10]} c6 {[%emt 0:00:34]} 4. e3 {[%emt 0:00:26]} Nf6 {[%emt 0:00:12]} 5. Nf3 {[%emt 0:00:27]} Nbd7 {[%emt 0:00:49]} 6. Be2 {[%emt 0:00:12]} Bd6 {[%emt 0:02:21]} 7. O-O {[%emt 0:00:23]} O-O {[%emt 0:01:08]} 8. b3 {[%emt 0:00:12]} b6 {[%emt 0:02:15] D45: Semi-Slav: 5 e3.} 9. a4 {[%emt 0:00:14][%cal Ba2a4,Ba4a5][%mdl 32] [#]} Bb4 $146 {[%emt 0:05:42]} ({Predecessor:} 9... a5 10. Bb2 Bb7 11. Bd3 Qe7 12. Qc2 Rac8 13. e4 e5 14. Rfe1 dxc4 15. Bxc4 g6 16. Rad1 exd4 17. Nxd4 {1-0 (40) Ding,L (2791)-Yu,Y (2709) Chess.com INT 2020}) 10. Qc2 {[%emt 0:03:08]} Bb7 {[%emt 0:03:22]} 11. Na2 {[%emt 0:00:16]} Bd6 {[%emt 0:01:27]} 12. a5 {[%emt 0:00:37]} Rc8 {[%emt 0:04:42]} 13. Nc3 {[%emt 0:00:19]} Re8 {[%emt 0:05:25]} 14. Rd1 {[%emt 0:05:35]} Qc7 {[%emt 0:08:08]} (14... bxa5 $15 15. c5 Bc7) 15. h3 $11 {[%emt 0:07:57]} Nf8 {[%emt 0:13:49]} 16. Qb1 {[%emt 0:05:28]} Qe7 {[%emt 0:04:25]} 17. Bb2 {[%emt 0:05:59]} Ng6 {[%emt 0:03:27]} 18. Na4 {[%emt 0:01:16]} Nd7 {[%emt 0:01:42]} 19. Bd3 {[%emt 0:03:09]} (19. axb6 {was preferrable.} axb6 20. Nxb6 $1 Nxb6 21. c5) 19... c5 {[%emt 0:06:08]} 20. dxc5 {[%emt 0:00:50]} bxc5 {[%emt 0:04:02]} 21. cxd5 {[%emt 0:04:05]} exd5 {[%emt 0:05:12][%cal Od5d4]} 22. Re1 {[%emt 0:01:55]} Nf6 {[%emt 0:03:30]} 23. Bb5 {[%emt 0:01:53]} (23. Bf5 $11 {remains equal.}) 23... Red8 $1 $17 {[%emt 0:00:33]} 24. Qf5 {[%emt 0:00:18]} Qe6 {[%emt 0:03:42]} (24... Ne4 $1 $17 {Hoping for ...Rb8.} 25. a6 Ba8) 25. Qxe6 $14 {[%emt 0:02:18]} fxe6 {[%emt 0:00:01]} 26. Bd3 {[%emt 0:01:40]} ({Better is} 26. Rec1 $14) 26... Nf8 {[%emt 0:06:40]} 27. Rac1 {[%emt 0:03:49]} Ne4 {[%emt 0:05:10]} (27... N8d7 $11) 28. Rc2 {[%emt 0:04:22]} Bc6 {[%emt 0:02:15]} 29. Bxe4 {[%emt 0:01:09]} dxe4 {[%emt 0:00:02]} 30. Nd2 {[%emt 0:00:08] Pair of Knights!} Rb8 {[%emt 0:01:15]} (30... Nd7 $14) 31. Ba3 $1 $16 {[%emt 0:01:59][%cal Bb2a3,Ba3c5,Bc5a7][%mdl 32]} Bd5 {[%emt 0:01:11][%cal Oc5c4]} 32. Bxc5 {[%emt 0:01:01]} Bxb3 {[%emt 0:00:41]} 33. Nxb3 {[%emt 0:00:20]} Rxb3 {[%emt 0:00:04]} 34. Bxa7 {[%emt 0:02:24]} Bb4 {[%emt 0:03:24]} 35. Bb6 {[%emt 0:01:00]} Ra8 {[%emt 0:01:00]} 36. Rec1 {[%emt 0:03:45] And now Rc8 would win.} Bxa5 {[%emt 0:00:11]} 37. Bxa5 {[%emt 0:00:09]} Rxa5 {[%emt 0:00:04]} 38. Nc5 {[%emt 0:00:18]} Rb4 {[%emt 0:00:55]} 39. Kh2 {[%emt 0:00:52]} Ra7 {[%emt 0:01:02]} 40. Rc4 {[%emt 0:00:24]} Rxc4 {[%emt 0:00:18]} 41. Rxc4 {[%emt 0:00:07][%mdl 4096] Endgame KRN-KRN} Rc7 {[%emt 0:00:01] Threatens to win with ...Nd7.} 42. Rc3 $1 {[%emt 0:00:08] &Bianco is more active.} Nd7 {[%emt 0:00:31]} 43. Nxe4 {[%emt 0:00:07]} Rxc3 {[%emt 0:00:03]} 44. Nxc3 {[%emt 0:00:07] KN-KN} Kf7 {[%emt 0:00:11]} 45. f4 {[%emt 0:00:19]} g6 {[%emt 0:01:14]} 46. Kg3 {[%emt 0:00:36]} h6 {[%emt 0:00:58]} 47. Kf3 {[%emt 0:01:16]} e5 {[%emt 0:01:23]} 48. h4 {[%emt 0:00:36]} Ke6 {[%emt 0:00:19]} 49. Nb5 {[%emt 0:03:08]} (49. g4 $16) 49... Nb6 {[%emt 0:01:24]} 50. g4 {[%emt 0:02:40]} exf4 {[%emt 0:00:33]} 51. Kxf4 {[%emt 0:00:10]} (51. exf4 $16 Nd7 52. Nd4+ Kd5 53. Ne2) 51... Nd5+ $11 {[%emt 0:00:08]} 52. Ke4 {[%emt 0:00:06]} Nf6+ {[%emt 0:00:13]} 53. Kf3 {[%emt 0:00:06]} Ke5 {[%emt 0:01:10]} 54. Na3 {[%emt 0:00:10]} Kd5 {[%emt 0:01:39]} 55. Nc2 {[%emt 0:01:20]} Ke5 {[%emt 0:00:07]} 56. Nb4 {[%emt 0:00:12]} Nd7 {[%emt 0:00:26]} 57. Nd3+ {[%emt 0:00:30]} Kf6 {[%emt 0:00:49] [#]} 58. Ke4 {[%emt 0:00:41]} ({White should try} 58. e4 $1 $16) 58... Ke6 {[%emt 0:00:29]} 59. Kd4 {[%emt 0:04:59]} (59. Kf4 $14) 59... Nf6 {[%emt 0:00:37]} 60. Nf2 {[%emt 0:00:08]} Nd7 {[%emt 0:00:20]} 61. Ke4 {[%emt 0:01:51]} Nf6+ {[%emt 0:00:11]} 62. Kf3 {[%emt 0:00:35]} Nd7 {[%emt 0:00:43]} 63. Nd3 {[%emt 0:00:40]} Nb6 {[%emt 0:00:35]} 64. e4 {[%emt 0:00:17]} Nc4 {[%emt 0:00:28]} (64... g5 $11) 65. Kf4 $14 {[%emt 0:00:18]} Kf6 {[%emt 0:00:36] [#]} 66. g5+ {[%emt 0:08:31]} ({White should play} 66. e5+ $1 $16 Ke7 67. Ke4) 66... hxg5+ $11 {[%emt 0:00:12] The position is equal.} 67. hxg5+ {[%emt 0:00:03]} Ke6 {[%emt 0:00:24]} 68. Kf3 {[%emt 0:00:19]} Kd6 {[%emt 0:00:46]} 69. Kf4 {[%emt 0:02:50]} Ke6 {[%emt 0:00:11]} 70. Ne1 {[%emt 0:00:29]} Ne5 {[%emt 0:00:56]} 71. Nf3 {[%emt 0:00:05]} Nf7 {[%emt 0:00:17]} 72. Ke3 {[%emt 0:04:43]} Nd6 {[%emt 0:00:07]} 73. Kd3 {[%emt 0:00:50]} Nf7 {[%emt 0:00:37]} 74. Kd4 {[%emt 0:00:26]} Nd6 {[%emt 0:00:31]} 75. Ke3 {[%emt 0:00:25]} Nf7 {[%emt 0:00:55]} 76. Kf4 {[%emt 0:06:15]} Kd6 {[%emt 0:00:12]} 77. Ke3 {[%emt 0:07:22] White really could win this.  Weighted Error Value: White=0.17 (very precise) /Black=0.18 (very precise)} 1/2-1/2

[Event "1st Semana Santa Torrevieja 2022"]
[Site "Torrevieja Alicante"]
[Date "2022.04.15"]
[Round "5.15"]
[White "Larino Nieto, David"]
[Black "Serrano Almendros, Alejandro"]
[Result "1-0"]
[ECO "A30"]
[WhiteElo "2440"]
[BlackElo "2163"]
[Annotator "TA"]
[PlyCount "73"]
[EventDate "2022.04.12"]
[EventType "swiss"]
[EventCountry "ESP"]
[SourceTitle "playchess.com"]
[Source "ChessBase"]
[SourceQuality "1"]
[TimeControl "5400+30"]

{[%evp 9,73,7,14,14,9,13,16,14,27,19,49,24,23,31,23,25,16,15,17,14,16,14,37,40,38,26,35,18,25,27,167,166,162,164,169,170,177,184,185,111,180,166,266,265,260,254,266,262,268,262,350,329,367,333,582,419,712,691,837,806,1091,958,1100,1010,750,628]} 1. e3 {[%emt 0:01:20]} e6 {[%emt 0:01:11]} 2. b3 {[%emt 0:00:29]} b6 {[%emt 0:00:35]} 3. Bb2 {[%emt 0:02:26]} Bb7 {[%emt 0:00:05]} 4. c4 {[%emt 0:00:40]} Nf6 {[%emt 0:01:16]} 5. Nf3 {[%emt 0:00:23]} c5 {[%emt 0:01:30]} 6. Nc3 {[%emt 0:01:24] A30: Symmetrical English: Double Fianchetto and Hedgehog.} Nc6 {[%emt 0:01:20]} 7. Be2 {[%emt 0:01:15]} Be7 {[%emt 0:00:28]} 8. d4 {[%emt 0:04:29] The position is equal.} cxd4 {[%emt 0:01:46]} 9. Nxd4 {[%emt 0:01:06] [#]} d5 $146 {[%emt 0:10:20]} ({Predecessor:} 9... Nxd4 10. Qxd4 O-O 11. O-O Bc5 12. Qf4 d5 13. Rfd1 Qe7 14. Qg3 dxc4 15. Bxc4 Rfd8 16. Nb5 Rxd1+ 17. Rxd1 Rd8 18. Rxd8+ Qxd8 19. Bxf6 Qxf6 20. Qb8+ Bf8 21. Qxb7 {1-0 (21) Vokhidov,S (2530)-Krivonosov,O (2371) Chess.com INT 2021}) 10. cxd5 {[%emt 0:05:50]} Nxd5 {[%emt 0:02:27]} 11. Nxc6 {[%emt 0:05:05]} Bxc6 {[%emt 0:01:26]} 12. Nxd5 {[%emt 0:00:09]} (12. Bf3 {keeps more tension.} Bf6 13. Nxd5 Bxd5 14. Bxf6 Qxf6 15. Bxd5 Qc3+ 16. Ke2) 12... Qxd5 {[%emt 0:06:53]} 13. Qxd5 {[%emt 0:00:18]} Bxd5 {[%emt 0:00:08]} 14. Bb5+ {[%emt 0:00:02]} ({Of course not} 14. Bxg7 Bb4+ 15. Kd1 (15. Kf1 Rg8 $15) 15... Rg8 $15) 14... Kf8 {[%emt 0:00:48]} 15. Rc1 {[%emt 0:01:41]} Bc5 {[%emt 0:09:38]} 16. Ke2 {[%emt 0:04:07]} a6 {[%emt 0:04:58]} 17. Bd3 {[%emt 0:01:32]} a5 {[%emt 0:00:41]} 18. e4 {[%emt 0:05:34]} Bb7 {[%emt 0:00:43]} 19. Rhd1 {[%emt 0:00:31]} Rd8 {[%emt 0:11:45] [#]} (19... Rg8 $11) 20. Bb5 $1 $18 {[%emt 0:03:15]} Ke7 {[%emt 0:02:34]} (20... Rxd1 $2 21. Rxd1 Be7 22. Rd7 Bxe4 23. Rc7 $18) 21. Bxg7 {[%emt 0:00:55]} Rhg8 {[%emt 0:00:35]} 22. Rxd8 {[%emt 0:00:11]} Rxd8 {[%emt 0:00:10]} 23. e5 $36 {[%emt 0:01:50][%mdl 2048] White is really pushing.} Rd4 {[%emt 0:05:04]} 24. Bf6+ {[%emt 0:00:08]} Kf8 {[%emt 0:00:05]} 25. f3 {[%emt 0:00:08][%cal Bf2f3,Bf3f4,Bf4f5][%mdl 32]} Rb4 {[%emt 0:00:51]} (25... a4 $142 26. bxa4 (26. Bxa4 Ba6+ 27. Ke1 Rd3 $16) 26... Rb4) 26. Bc4 {[%emt 0:02:10]} Bd5 {[%emt 0:00:41]} 27. Bxd5 {[%emt 0:00:35]} exd5 {[%emt 0:00:02][%mdl 4096] Endgame KRB-KRB} 28. Rd1 {[%emt 0:00:04]} d4 {[%emt 0:00:56]} 29. Rd3 {[%emt 0:05:04] [#] Hoping for a3.} Be7 {[%emt 0:04:19]} 30. f4 {[%emt 0:02:34]} Bxf6 {[%emt 0:13:58]} 31. exf6 {[%emt 0:01:36] KR-KR} Ke8 $2 {[%emt 0:00:01]} (31... h5 32. Kf3 a4) 32. Kf3 {[%emt 0:00:11]} Kd7 {[%emt 0:00:18]} (32... Rb5 $142 33. Rxd4 Rh5) 33. f5 {[%emt 0:00:02] White is clearly winning.} ({Not} 33. a3 Rb5 34. Rxd4+ Kc6 $18) 33... a4 {[%emt 0:00:31]} 34. Ke4 {[%emt 0:04:49]} axb3 {[%emt 0:00:03]} 35. axb3 {[%emt 0:00:15]} Kc6 {[%emt 0:01:39]} 36. g4 {[%emt 0:01:26][%cal Bg2g4,Bg4g5][%mdl 32] And now g5 would win.} Rb5 {[%emt 0:02:57]} 37. g5 {[%emt 0:45:26] Weighted Error Value: White=0.10 (very precise) /Black=0.36} 1-0

[Event "1st Semana Santa Torrevieja 2022"]
[Site "Torrevieja Alicante"]
[Date "2022.04.15"]
[Round "5.16"]
[White "Chatalbashev, Boris"]
[Black "Macias Pino, Diego"]
[Result "1-0"]
[ECO "D27"]
[WhiteElo "2515"]
[BlackElo "2317"]
[Annotator "TA"]
[PlyCount "53"]
[EventDate "2022.04.12"]
[EventType "swiss"]
[EventCountry "ESP"]
[SourceTitle "playchess.com"]
[Source "ChessBase"]
[SourceQuality "1"]
[TimeControl "5400+30"]

{[%evp 14,53,38,40,25,22,25,27,31,33,32,0,19,15,29,15,40,20,61,52,129,116,96,105,149,140,1066,1052,1042,790,1827,1739,2221,2243,2147,2030,1907,1920,1922,1824,1824,1813]} 1. d4 {[%emt 0:00:03]} d5 {[%emt 0:00:02]} 2. c4 {[%emt 0:00:05]} dxc4 {[%emt 0:00:02]} 3. Nf3 {[%emt 0:00:07]} Nf6 {[%emt 0:00:04]} 4. e3 {[%emt 0:00:05]} e6 {[%emt 0:00:02]} 5. Bxc4 {[%emt 0:00:07]} a6 {[%emt 0:00:02]} 6. O-O {[%emt 0:01:16]} c5 {[%emt 0:00:01]} 7. b3 {[%emt 0:00:44]} cxd4 {[%emt 0:00:44]} 8. Nxd4 {[%emt 0:00:55]} Bd7 {[%emt 0:01:49] D27: Queen's Gambit Accepted: Classical main line: 7 e4!? and 7 a4.} 9. Bb2 {[%emt 0:01:14]} Nc6 {[%emt 0:00:04]} 10. Nf3 {[%emt 0:04:09]} Be7 {[%emt 0:01:27] White has an edge.} 11. Nbd2 {[%emt 0:00:35]} O-O {[%emt 0:00:27] 11...b5 is not played anymore.} 12. e4 {[%emt 0:02:55][%cal Be3e4,Be4e5][%mdl 32]} Qc7 {[%emt 0:02:42]} 13. Rc1 {[%emt 0:03:54] [#]} Rfd8 $146 {[%emt 0:02:09]} ({Predecessor:} 13... Qf4 14. Re1 Rfd8 15. g3 Qh6 16. e5 Nd5 17. Ne4 Na5 18. Bxd5 Bc6 19. Nd6 Bxd5 {½-½ (44) Timofeev,A (2616)-Stukopin,A (2492) Taganrog 2013}) 14. e5 {[%emt 0:04:30]} Nd5 {[%emt 0:00:17]} 15. Qe2 {[%emt 0:05:43]} Ndb4 {[%emt 0:05:01]} (15... b5 {is interesting.} 16. Bxd5 exd5 17. e6 fxe6 18. Ne5 Qd6) 16. a3 {[%emt 0:01:30]} b5 {[%emt 0:01:50]} 17. axb4 $16 {[%emt 0:04:49] [#] Hoping for Bd3.} bxc4 {[%emt 0:00:15]} 18. Rxc4 {[%emt 0:02:25] Black must now prevent Ne4.} ({Reject} 18. Qxc4 $6 Qb7 $11) 18... Bf8 {[%emt 0:05:05]} 19. Ne4 $36 {[%emt 0:03:32][%cal Bd2e4,Be4g5,Bg5e6,Be6g7][%mdl 2080] aiming for Nfg5. White has strong initiative.} Qb6 $2 {[%emt 0:04:28][%mdl 8192] This move loses the game for Black.} (19... Be8 $16) 20. Nfg5 $18 {[%emt 0:12:43] Threatening mate with Qh5. Pair of Knights! White is clearly winning.} h6 {[%emt 0:04:03] [#]} 21. Qd3 $1 {[%emt 0:05:31][%cal Oe4f6] Intending Nf6+! and mate.} hxg5 {[%emt 0:04:37]} (21... Bxb4 22. Nf6+) 22. Nxg5 {[%emt 0:00:12][%csl Gg5][%cal Rd3h7]} g6 {[%emt 0:01:14]} 23. Qh3 {[%emt 0:01:34][%csl Gg5][%cal Rh3h7]} Bg7 {[%emt 0:00:06]} 24. Rf4 {[%emt 0:02:15]} Be8 {[%emt 0:01:10]} 25. Qh7+ {[%emt 0:00:47]} Kf8 {[%emt 0:00:07]} 26. Nxe6+ {[%emt 0:00:46]} Ke7 {[%emt 0:00:05]} 27. Nxg7 {[%emt 0:01:56] Weighted Error Value: White=0.08 (flawless) /Black=0.28 (precise)} 1-0